bitfinex-derivatives/quotes_ETHF0:USTF0_20250730
["timestamp","ask_amount","ask_price","bid_price","bid_amount"]
[1753885558295,6.3593,3781.9,3781.8,23.565]
[1753885558596,0.2,3781.9,3781.8,24.4704]
[1753885560287,2.5594,3781.9,3781.8,24.4704]
[1753885560487,2.4699,3781.6,3781.5,0.52889]
[1753885560699,2.4699,3781.3,3780.9,2.35991926]
[1753885560895,2.4699,3781.3,3781.2,0.52893]
[1753885561090,2.4699,3781.3,3781.1,0.52894]
[1753885561297,6.1019,3781.2,3781.1,0.52894]
[1753885561594,6.1019,3781.2,3781.1,2.11204]
[1753885561799,44.432,3781.5,3781.4,5.66661]
[1753885562189,0.52891,3781.4,3781.3,0.52891]
[1753885562394,6.63081,3781.4,3781.3,0.52891]
[1753885562601,6.1019,3781.4,3781.3,0.52891]
[1753885563390,40.8,3781.6,3781.5,0.52889]
[1753885563592,41.7068,3781.6,3781.5,5.66659]
[1753885563790,6.1019,3781.6,3781.5,0.52889]
[1753885564396,2.4699,3781.6,3781.1,1.4702]
[1753885564603,1.0173,3780.9,3780.8,19.01299]
[1753885564804,2.4699,3780.9,3780.8,19.01299]
[1753885565196,6.1019,3780.9,3780.8,0.52899]
[1753885565402,0.52907,3780.2,3780.1,2.35991926]
[1753885565704,0.52907,3780.2,3779.1,1.32306]
[1753885565705,3.632,3780.0,3778.9,39.40912]
[1753885565896,1.2296,3779.6,3779.5,0.52916]
[1753885566200,3.632,3779.6,3779.5,0.52916]
[1753885566391,0.9068,3779.6,3779.5,3.24366]
[1753885566700,3.632,3779.6,3779.0,18.484]
[1753885566900,0.52912,3779.9,3779.7,0.52913]
[1753885567292,0.52912,3779.9,3779.6,0.52915]
[1753885567498,3.632,3779.8,3779.7,0.52913]
[1753885567797,3.632,3779.8,3779.7,1.77343]
[1753885568098,40.8,3780.1,3779.5,1.4702]
[1753885568099,3.632,3779.9,3779.8,0.52912]
[1753885568299,3.632,3779.9,3779.8,3.24362]
[1753885568601,3.632,3779.9,3779.8,1.4702]
[1753885568803,3.632,3779.9,3779.8,2.7145]
[1753885569401,43.5252,3780.1,3780.0,2.7145]
[1753885569600,2.7252,3780.1,3779.9,0.52912]
[1753885569804,2.7252,3780.0,3779.9,0.52912]
[1753885570100,3.632,3780.0,3779.9,0.52912]
[1753885570300,0.52911,3780.0,3779.7,0.52914]
[1753885570601,4.22476428,3779.8,3779.6,0.52915]
[1753885570809,3.632,3779.6,3779.4,0.52918]
[1753885571109,0.9068,3779.7,3779.6,1.99934]
[1753885571297,0.9068,3779.7,3779.6,3.24364]
[1753885571497,2.1364,3779.7,3779.6,3.24364]
[1753885571799,3.632,3779.7,3779.6,3.24364]
[1753885571994,3.632,3779.7,3779.6,2.7145]
[1753885572699,0.9068,3779.7,3779.6,3.6199]
[1753885572896,1.4956,3780.1,3779.9,0.5291]
[1753885573103,2.7252,3780.0,3779.9,1.4702]
[1753885573303,0.52911,3780.0,3779.7,0.52913]
[1753885573503,3.632,3779.8,3779.7,0.52913]
[1753885573804,3.632,3779.8,3779.5,1.4702]
[1753885573805,0.9068,3779.7,3779.0,1.4702]
[1753885574002,3.632,3779.2,3778.7,18.489]
[1753885574206,2.02875428,3779.4,3779.2,0.5292]
[1753885574403,1.4956,3779.2,3778.8,0.9054]
[1753885574605,2.1364,3779.1,3779.0,3.24374]
[1753885574914,3.632,3779.1,3779.0,3.24374]
[1753885575798,0.9068,3779.1,3779.0,3.24374]
[1753885575998,2.1364,3779.6,3779.5,3.24367]
[1753885576207,0.9068,3779.6,3779.5,4.14907]
[1753885576503,3.632,3779.9,3779.8,3.24362]
[1753885576893,2.1364,3779.9,3779.8,3.24362]
[1753885577099,1.3224,3781.1,3780.6,0.52902]
[1753885577100,2.1364,3780.7,3780.6,0.52902]
[1753885577302,1.4956,3781.3,3780.9,0.52897]
[1753885577303,1.4956,3781.0,3780.9,0.52897]
[1753885577502,0.52893,3781.3,3780.7,1.4702]
[1753885577503,2.1364,3780.8,3780.7,1.4702]
[1753885577706,2.1364,3780.8,3780.2,1.4702]
[1753885577707,2.1364,3780.7,3780.2,1.4702]
[1753885578002,1.49956428,3780.5,3780.3,0.52905]
[1753885578314,1.2296,3780.2,3780.1,0.52907]
[1753885578515,3.632,3780.2,3780.1,0.52907]
[1753885579201,4.16108,3780.2,3780.0,0.52909]
[1753885579411,3.632,3780.1,3780.0,0.52909]
[1753885579900,3.632,3780.1,3780.0,1.99929]
[1753885580106,3.632,3780.1,3780.0,3.24359]
[1753885580809,3.632,3780.5,3780.4,0.52904]
[1753885581001,0.9068,3780.8,3780.7,0.529]
[1753885581196,2.1364,3780.8,3780.7,0.529]
[1753885581401,3.632,3780.3,3780.2,0.52906]
[1753885581602,3.632,3780.3,3779.5,0.9054]
[1753885581603,2.0247,3780.1,3780.0,0.5291]
[1753885581801,0.52914,3779.7,3779.6,0.52915]
[1753885582005,2.7252,3779.7,3779.6,0.52915]
[1753885582207,3.632,3779.7,3779.6,0.52915]
[1753885582608,3.632,3779.7,3779.6,3.24365]
[1753885583205,2.1364,3779.7,3779.6,3.24365]
[1753885583906,0.9068,3779.7,3779.6,4.14905]
[1753885584303,0.9068,3779.7,3779.6,3.24365]
[1753885584501,2.1364,3779.7,3779.6,1.99935]
[1753885584701,3.632,3779.7,3779.6,3.24365]
[1753885584898,4.16114,3779.7,3779.6,3.24365]
[1753885585304,3.632,3779.7,3779.6,3.24365]
[1753885586004,0.5292,3779.3,3779.2,38.63021]
[1753885586298,1.49956428,3779.3,3779.1,0.52922]
[1753885586503,3.632,3779.2,3779.1,0.52922]
[1753885586899,0.9068,3779.2,3779.1,3.24372]
[1753885587108,42.0296,3779.8,3779.2,2.7145]
[1753885587309,0.9068,3779.6,3779.3,1.2443]
[1753885587501,4.16114,3779.7,3779.5,0.52916]
[1753885587702,40.8,3779.8,3779.6,0.52915]
[1753885587910,0.52916,3779.6,3779.4,2.7145]
[1753885588105,0.5292,3779.4,3779.2,0.5292]
[1753885588309,3.632,3779.3,3779.2,1.9994]
[1753885588908,0.9068,3779.3,3779.2,3.1997]
[1753885589111,2.1475,3779.3,3779.2,3.1997]
[1753885589311,3.5687,3779.3,3779.2,3.1997]
[1753885589926,3.5687,3779.3,3779.2,1.4702]
[1753885590115,0.5292,3779.3,3779.2,0.5292]
[1753885590915,4.085,3779.3,3779.2,0.5292]
[1753885591112,6.4434,3779.3,3779.2,0.5292]
[1753885591314,2.88762,3779.2,3779.1,0.52922]
[1753885591513,5.9142,3779.1,3779.0,0.52923]
[1753885591716,5.9142,3779.1,3778.9,3.55483223]
[1753885591717,0.52924,3779.0,3778.9,0.52925]
[1753885591916,4.30884,3779.0,3778.9,0.52925]
[1753885592116,2.88764,3779.0,3778.9,0.52925]
[1753885592308,2.88764,3779.0,3778.9,2.97695]
[1753885592510,5.9142,3778.9,3778.8,2.35453223]
[1753885592707,5.9142,3778.9,3778.5,18.493]
[1753885592708,2.3584,3778.7,3778.6,2.35453223]
[1753885592916,5.9142,3778.7,3778.6,2.35453223]
[1753885593309,5.9142,3778.7,3778.6,3.6844]
[1753885593514,5.0203,3778.7,3778.6,5.099]
[1753885593817,5.0203,3778.7,3778.5,19.0223]
[1753885593818,5.0203,3778.6,3778.5,19.5261]
[1753885594020,4.9773,3778.8,3778.7,5.099]
[1753885594216,5.9142,3778.8,3778.7,7.46377053]
[1753885594526,5.9142,3778.8,3778.7,5.099]
[1753885594815,2.428,3779.2,3779.1,1.612]
[1753885595121,2.428,3779.2,3779.1,5.62823]
[1753885595122,2.3154,3779.2,3779.1,5.62823]
[1753885595419,5.9142,3779.2,3779.1,5.62823]
[1753885596215,5.9142,3779.2,3779.1,5.099]
[1753885597918,2.88763,3779.1,3779.0,2.36591348]
[1753885598118,2.88763,3779.1,3778.8,0.10391348]
[1753885598119,0.52925,3778.9,3778.8,0.10391348]
[1753885598418,4.08511,3778.5,3778.4,1.95586346]
[1753885598618,0.52938,3778.0,3777.8,0.19587861]
[1753885598813,2.3151,3777.9,3777.8,0.19587861]
[1753885599419,43.1151,3777.9,3777.8,0.19587861]
[1753885600025,43.1151,3777.9,3777.8,3.70087861]
[1753885600325,43.1555,3777.9,3777.8,3.70087861]
[1753885600817,0.8939,3778.2,3777.9,0.52939]
[1753885601028,2.3555,3778.1,3778.0,3.505]
[1753885601416,43.1555,3778.1,3778.0,3.505]
[1753885602019,40.8,3778.1,3778.0,3.505]
[1753885602619,0.8939,3778.9,3778.4,1.4146]
[1753885602818,2.3555,3779.3,3778.7,0.8901]
[1753885603125,43.1555,3779.2,3779.1,3.505]
[1753885603728,43.68472,3779.2,3778.9,0.52925]
[1753885604023,2.3555,3779.1,3778.9,0.52925]
[1753885604224,0.52922,3779.2,3778.9,0.52925]
[1753885604225,2.3555,3779.0,3778.9,0.52925]
[1753885604823,2.3555,3779.0,3778.8,0.52926]
[1753885605024,1.4212,3779.2,3779.1,3.505]
[1753885605225,1.4212,3779.4,3779.2,0.52921]
[1753885605529,0.8939,3779.4,3779.3,3.505]
[1753885605720,0.52917,3779.6,3779.4,0.52918]
[1753885605920,2.3555,3779.5,3779.4,2.6149]
[1753885606120,2.3555,3779.5,3779.4,1.2003]
[1753885606315,0.9343,3779.4,3779.3,0.8901]
[1753885606529,2.3555,3779.4,3779.3,0.8901]
[1753885606828,2.3555,3779.4,3779.3,3.505]
[1753885608532,60.94906656,3780.0,3779.0,0.52924]
[1753885608533,0.5292,3779.3,3779.0,0.52924]
[1753885608723,1.4616,3779.1,3778.9,0.52925]
[1753885608925,3.9542,3779.0,3778.9,6.51835]
[1753885609131,2.533,3779.0,3778.9,6.51835]
[1753885609333,2.428,3779.0,3778.9,6.51835]
[1753885609632,1.5341,3779.0,3778.9,6.51835]
[1753885610129,1.5745,3779.3,3779.2,6.51831]
[1753885610729,3.8896,3779.3,3779.2,5.9891]
[1753885611128,0.5972,3779.3,3779.2,5.9891]
[1753885611335,4.41879,3779.4,3779.3,5.9891]
[1753885611735,1.5341,3779.4,3779.3,5.9891]
[1753885612026,4.41875,3779.7,3779.6,2.4841]
[1753885612232,3.8492,3779.7,3779.6,6.51826]
[1753885612435,1.32263,3780.4,3779.2,1.32303]
[1753885612436,1.32256,3780.6,3780.0,1.2003]
[1753885612736,2.06319,3780.1,3780.0,5.9891]
[1753885612929,45.21869,3780.1,3780.0,5.9891]
[1753885613535,45.21869,3780.1,3780.0,0.8721]
[1753885614534,44.6896,3780.1,3780.0,0.8721]
[1753885614834,44.6896,3780.1,3780.0,3.6844]
[1753885615028,42.3341,3780.1,3780.0,5.9891]
[1753885615930,42.3341,3780.1,3778.6,1.86161526]
[1753885615931,0.9369,3779.3,3779.2,1.0331]
[1753885616129,0.9369,3779.3,3778.5,1.32327]
[1753885616130,0.0646,3779.2,3779.1,0.52922]
[1753885616332,3.9542,3779.2,3779.1,3.18052]
[1753885616530,3.9542,3779.2,3779.1,6.51832]
[1753885616732,0.5972,3779.6,3779.5,1.98016]
[1753885616933,1.4911,3779.6,3779.5,5.9891]
[1753885617132,3.9542,3779.6,3779.5,5.099]
[1753885617328,0.5972,3779.6,3779.5,5.9891]
[1753885617729,1.5341,3779.6,3779.5,5.9891]
[1753885617930,1.5341,3779.6,3779.5,0.8721]
[1753885617931,3.9542,3779.6,3779.5,0.8721]
[1753885618534,0.52915,3779.7,3779.6,3.693]
[1753885618734,0.52915,3779.7,3779.5,1.451]
[1753885618735,1.6116,3779.2,3779.1,6.1056]
[1753885618936,4.0331,3779.2,3779.1,3.7162]
[1753885619237,4.0331,3779.2,3779.1,1.4475]
[1753885619436,4.0331,3779.2,3779.1,6.1056]
[1753885619437,4.0006,3779.2,3779.1,6.1056]
[1753885619634,1.14539,3779.4,3779.3,2.4126]
[1753885619836,4.56229,3779.4,3779.3,6.1056]
[1753885620038,4.56229,3779.4,3779.3,3.7162]
[1753885620227,1.6116,3778.8,3778.7,2.94188]
[1753885620431,2.4015,3778.8,3778.7,4.22228]
[1753885620631,0.52923,3779.1,3778.2,41.41856728]
[1753885620632,1.65206656,3779.0,3778.2,41.41856728]
[1753885620831,2.4015,3778.4,3778.3,3.34593]
[1753885621030,2.4015,3778.4,3778.3,4.22233]
[1753885621636,40.8,3778.9,3778.7,4.22227]
[1753885621939,0.52927,3778.9,3778.7,0.52927]
[1753885622135,0.52931,3778.6,3778.4,2.3894]
[1753885622339,0.52934,3778.3,3778.2,1.83294]
[1753885622537,1.39073,3778.4,3778.3,3.693]
[1753885622841,0.52937,3778.1,3778.0,1.513]
[1753885623035,2.389,3778.1,3778.0,3.693]
[1753885623637,0.52932,3778.5,3778.3,0.52933]
[1753885623835,0.52932,3778.5,3778.4,3.693]
[1753885624231,1.39072,3778.5,3778.4,3.693]
[1753885624438,2.93082,3778.5,3778.4,3.693]
[1753885624634,2.389,3778.5,3778.4,4.22232]
[1753885624839,2.389,3778.5,3777.8,0.19587861]
[1753885624840,40.8,3778.7,3778.6,3.693]
[1753885625436,0.52929,3778.7,3778.5,0.5293]
[1753885625641,2.389,3778.8,3778.0,1.32345]
[1753885625642,0.52931,3778.6,3778.4,0.52932]
[1753885626043,0.52931,3778.6,3778.4,3.693]
[1753885626342,0.52932,3778.5,3778.3,0.52933]
[1753885626733,0.52932,3778.5,3778.4,3.693]
[1753885626930,2.93082,3778.5,3778.4,3.693]
[1753885627449,2.4015,3779.8,3778.5,2.8166]
[1753885627744,0.52915,3779.7,3779.6,3.693]
[1753885628042,2.91817,3779.6,3779.4,1.83277]
[1753885628230,0.52917,3779.6,3779.5,3.693]
[1753885628636,0.52915,3779.7,3779.5,0.52917]
[1753885628836,2.91815,3779.7,3779.6,3.693]
[1753885629045,2.93065,3779.7,3779.6,3.693]
[1753885629944,2.4015,3779.7,3779.6,4.22216]
[1753885630138,0.52914,3779.7,3779.5,0.52916]
[1753885630334,0.52917,3779.6,3779.4,0.52918]
[1753885630543,0.52914,3779.8,3779.6,0.52915]
[1753885630745,0.52916,3779.7,3779.5,2.3894]
[1753885630940,0.52916,3779.7,3779.4,0.52917]
[1753885631140,0.52912,3779.9,3779.7,0.52913]
[1753885631346,0.52914,3779.8,3779.6,0.52915]
[1753885631542,0.52914,3779.8,3778.9,1.32314]
[1753885631543,0.52914,3779.8,3779.7,3.693]
[1753885631844,2.93064,3779.8,3779.7,3.693]
[1753885633642,4.54224,3779.8,3779.7,6.1056]
[1753885633848,0.6162,3779.8,3779.7,6.1056]
[1753885634144,1.6116,3779.8,3779.7,6.1056]
[1753885634550,0.6162,3780.0,3779.9,6.1056]
[1753885635353,4.0331,3780.0,3779.9,6.1056]
[1753885635540,0.52916,3779.6,3779.3,0.52919]
[1753885635850,4.0331,3779.4,3779.3,5.1405]
[1753885636147,4.0331,3779.4,3779.3,6.1056]
[1753885636737,4.0131,3779.4,3779.3,6.6348]
[1753885637042,3.1517,3779.4,3779.3,6.6348]
[1753885637447,4.0006,3779.4,3779.3,6.6348]
[1753885638347,1.6116,3779.4,3779.3,6.6348]
[1753885638948,40.8,3780.2,3779.7,2.4126]
[1753885638949,2.14074,3779.8,3779.7,2.4126]
[1753885639144,0.52914,3779.8,3779.7,6.1056]
[1753885639451,3.70084,3779.8,3779.7,6.1056]
[1753885639652,4.56224,3779.8,3779.7,6.1056]
[1753885641352,4.0331,3779.8,3779.7,6.1056]
[1753885642548,2.35145147,3780.1,3780.0,0.5291]
[1753885642755,0.6162,3780.1,3780.0,6.6347]
[1753885643453,2.14064,3780.5,3780.4,2.4126]
[1753885643655,3.68074,3780.5,3780.4,6.1056]
[1753885643843,4.56214,3780.5,3780.4,6.1056]
[1753885644048,45.36214,3780.5,3780.4,6.1056]
[1753885644245,40.8,3780.5,3780.4,6.1056]
[1753885644452,42.3401,3780.5,3780.4,6.1056]
[1753885644651,43.2015,3780.5,3780.4,2.4126]
[1753885644860,43.2015,3780.5,3780.4,0.8493]
[1753885645154,4.0131,3780.2,3780.1,6.63468]
[1753885645346,4.0331,3780.2,3779.7,3.693]
[1753885645551,4.0331,3780.2,3779.3,1.32299]
[1753885645552,4.0331,3779.4,3779.3,1.4475]
[1753885645748,4.0331,3779.4,3779.0,1.3036]
[1753885645749,5.53565147,3779.4,3779.0,1.3036]
[1753885645953,4.0331,3779.3,3779.2,0.8493]
[1753885646145,4.0331,3779.3,3779.2,3.6275]
[1753885647354,4.0331,3778.9,3778.5,3.30456728]
[1753885647559,4.0331,3778.6,3778.5,4.75206728]
[1753885647760,3.72468,3778.8,3778.2,3.30456728]
[1753885648052,0.52934,3778.3,3778.2,3.30456728]
[1753885648257,2.4015,3778.3,3778.2,3.693]
[1753885648457,1.97139136,3778.3,3778.2,1.3036]
[1753885649049,1.97139136,3778.3,3778.2,3.591]
[1753885649654,1.50255147,3779.3,3778.7,2.7133]
[1753885649858,0.52927,3778.8,3778.7,3.5715]
[1753885650270,42.23297,3778.8,3778.7,3.5715]
[1753885650568,2.3767,3778.4,3778.3,3.5715]
[1753885651066,40.8,3778.8,3778.4,0.52932]
[1753885651067,2.90599,3778.7,3778.4,0.52932]
[1753885651270,2.90599,3778.7,3778.4,4.10082]
[1753885651471,2.3767,3778.6,3778.5,2.1423]
[1753885651671,2.3767,3778.6,3778.5,3.5715]
[1753885652469,1.32292,3779.6,3778.9,0.52925]
[1753885652971,0.52922,3779.2,3778.9,0.52925]
[1753885653266,0.52924,3779.1,3778.8,0.52926]
[1753885653463,0.5293,3778.6,3778.0,3.5715]
[1753885653671,2.3767,3778.9,3778.4,1.38751]
[1753885653866,2.3767,3778.5,3778.4,3.5715]
[1753885654469,1.50255147,3779.0,3778.4,0.8582]
[1753885654470,1.43296,3778.9,3778.4,0.8582]
[1753885654672,1.43296,3778.9,3777.9,1.32346]
[1753885654673,2.3767,3778.8,3778.7,3.5715]
[1753885656069,3.979,3778.8,3778.7,6.0271]
[1753885656671,2.3767,3778.8,3778.3,3.5715]
[1753885656877,0.6018,3778.4,3778.3,6.0271]
[1753885657574,3.979,3778.4,3777.9,2.2874]
[1753885657773,0.6018,3778.2,3778.1,6.0271]
[1753885658071,2.9785,3778.4,3778.3,0.8487]
[1753885658269,0.6018,3778.4,3778.3,6.0271]
[1753885658568,1.13112,3778.5,3778.4,5.1784]
[1753885658776,1.13112,3778.5,3778.4,6.0271]
[1753885659577,2.13162,3778.5,3778.4,6.0271]
[1753885660073,4.50837,3778.1,3778.0,3.7397]
[1753885660277,2.13169,3777.9,3777.8,2.47377861]
[1753885660576,4.50839,3777.9,3777.8,0.19587861]
[1753885660780,2.90609,3777.9,3777.8,0.19587861]
[1753885661371,43.70609,3777.9,3777.8,0.19587861]
[1753885665069,43.70609,3777.9,3777.8,8.61e-06]
[1753885665275,4.50848,3777.3,3777.2,0.018532]
[1753885665473,6.01103147,3777.3,3777.2,0.018532]
[1753885665984,45.30848,3777.3,3777.2,0.867232]
[1753885666271,43.306,3777.3,3777.2,6.045632]
[1753885666672,42.4023,3777.3,3777.2,6.045632]
[1753885667476,44.779,3777.3,3777.2,6.045632]
[1753885667671,0.52947,3777.4,3777.2,6.045632]
[1753885667672,0.52942,3777.8,3777.2,3.590032]
[1753885667877,0.9037,3778.8,3778.6,0.52928]
[1753885668076,2.22674,3779.2,3778.3,1.4292]
[1753885668378,2.22674,3779.2,3777.9,1.32349]
[1753885668379,1.50255147,3778.8,3778.5,1.4292]
[1753885668576,2.906,3778.6,3778.5,2.7133]
[1753885668877,2.3767,3778.6,3778.5,1.2841]
[1753885669079,2.3767,3778.6,3778.5,3.5715]
[1753885669276,43.70593,3779.1,3778.2,3.5715]
[1753885669472,0.1820323,3779.0,3778.9,1.38745]
[1753885669670,0.1820323,3779.0,3778.9,0.8582]
[1753885669870,0.1820323,3779.0,3778.9,3.5715]
[1753885670071,0.52921,3779.3,3778.9,0.52924]
[1753885670478,2.00221,3779.3,3779.2,2.7133]
[1753885671180,2.90591,3779.3,3779.2,2.7133]
[1753885671678,0.52923,3779.1,3778.7,0.52928]
[1753885671878,2.90593,3779.1,3779.0,2.7133]
[1753885672279,2.03177147,3779.2,3779.0,3.5715]
[1753885672469,1.50255147,3779.2,3779.1,3.5715]
[1753885673276,2.40625147,3779.2,3779.1,3.5715]
[1753885673579,3.00805147,3779.2,3779.1,6.0271]
[1753885674182,5.48155147,3779.2,3779.1,6.0271]
[1753885674378,0.6018,3779.2,3779.1,6.0271]
[1753885674681,0.6018,3779.2,3779.1,6.55633]
[1753885675080,40.8,3779.5,3779.4,6.0271]
[1753885676074,40.8,3779.5,3779.4,3.608]
[1753885676375,19.5927,3779.9,3778.9,1.32313]
[1753885676376,1.473,3779.8,3779.6,0.52915]
[1753885676580,0.6018,3779.8,3779.7,6.0271]
[1753885676881,1.6023,3779.4,3779.3,2.4556]
[1753885677081,3.979,3779.4,3779.3,4.5979]
[1753885677473,3.979,3779.4,3779.3,6.0271]
[1753885677675,4.50818,3779.4,3779.3,6.0271]
[1753885678377,1.13104,3779.0,3778.9,5.1689]
[1753885678684,2.5218,3779.0,3778.9,5.1689]
[1753885678886,2.5218,3779.0,3778.9,6.0819]
[1753885679380,2.9217,3779.3,3779.2,0.7892]
[1753885679580,2.9217,3779.3,3779.2,3.5555]
[1753885679581,2.0194,3779.3,3779.2,3.5555]
[1753885679881,4.4913,3779.3,3779.2,6.0683]
[1753885680984,42.2475,3779.8,3779.7,2.3592]
[1753885681180,0.2,3779.9,3779.8,6.59743]
[1753885681480,2.24209,3780.5,3778.9,1.32312]
[1753885681481,0.52903,3780.5,3780.3,0.52906]
[1753885681782,2.01919,3780.8,3780.7,3.8978]
[1753885682085,43.84359,3780.8,3780.7,6.0683]
[1753885682478,45.41919,3780.8,3780.7,6.0683]
[1753885682985,45.41919,3780.8,3780.7,5.1553]
[1753885683386,45.41919,3780.8,3780.7,6.0683]
[1753885684076,45.41919,3780.8,3780.7,2.3592]
[1753885684276,45.41919,3780.8,3780.3,6.0683]
[1753885684277,1.09974,3780.4,3780.3,6.0683]
[1753885684682,0.5707,3780.4,3780.3,6.0683]
[1753885684983,0.5707,3780.4,3780.2,0.52906]
[1753885684984,0.52904,3780.5,3780.4,6.0683]
[1753885685179,0.52901,3780.7,3780.5,5.0941]
[1753885685385,0.52901,3780.7,3780.6,6.0683]
[1753885685774,41.32899,3780.8,3780.6,2.3592]
[1753885685980,41.32899,3780.8,3780.7,6.0683]
[1753885686979,43.82409,3780.8,3780.7,6.0683]
[1753885687374,43.82409,3780.8,3780.7,4.8108]
[1753885687591,3.69976,3780.3,3780.2,3.5555]
[1753885687792,4.82426,3780.3,3780.2,3.5555]
[1753885688087,1.5951,3779.9,3779.8,4.8108]
[1753885688286,3.0426,3779.9,3779.8,6.0683]
[1753885688788,3.0426,3779.9,3779.8,6.59743]
[1753885688988,1.5951,3779.9,3779.8,6.0683]
[1753885690191,4.0902,3779.9,3779.8,6.0683]
[1753885690489,4.2952,3779.9,3779.8,6.0683]
[1753885690690,2.5146,3779.9,3779.8,6.0683]
[1753885690885,1.5951,3779.9,3779.8,6.0683]
[1753885691294,0.5707,3779.6,3779.5,4.23826]
[1753885691591,0.5707,3779.6,3779.5,6.59746]
[1753885692285,0.52912,3779.9,3779.8,6.0683]
[1753885692487,1.09982,3779.9,3779.8,6.0683]
[1753885692683,4.82432,3779.9,3779.8,6.0683]
[1753885692880,4.82438,3779.5,3779.4,1.385]
[1753885693085,4.82438,3779.5,3779.4,6.0683]
[1753885694085,0.52916,3779.6,3779.4,6.0683]
[1753885694293,0.52916,3779.6,3779.5,6.0683]
[1753885694694,0.52915,3779.7,3779.6,6.0683]
[1753885694893,3.04375,3779.7,3779.6,6.0683]
[1753885695189,2.12425,3779.7,3779.6,6.0683]
[1753885695984,0.5707,3779.7,3779.6,6.0683]
[1753885696591,4.2952,3779.7,3779.6,6.0683]
[1753885696785,4.2952,3779.7,3779.6,5.1553]
[1753885696981,4.2952,3779.7,3779.6,2.3592]
[1753885697386,4.2952,3779.7,3779.6,4.5297]
[1753885697586,4.2952,3779.7,3779.6,6.0683]
[1753885698988,0.52914,3779.8,3779.6,6.0683]
[1753885699193,0.52914,3779.8,3779.7,6.0683]
[1753885699593,1.09984,3779.8,3779.7,6.0683]
[1753885699797,3.04374,3779.8,3779.7,6.0683]
[1753885700498,4.61934,3779.8,3779.7,6.0683]
[1753885700699,4.82434,3779.8,3779.7,6.0683]
[1753885700895,2.12428,3779.5,3779.4,4.5297]
[1753885701195,1.09985,3779.7,3779.6,2.3592]
[1753885701395,1.09985,3779.7,3779.6,6.0683]
[1753885701592,0.5292,3779.3,3779.2,2.3592]
[1753885701799,4.6194,3779.3,3779.2,6.0683]
[1753885701998,4.2952,3779.3,3779.2,6.0683]
[1753885702190,1.5951,3779.3,3779.2,6.0683]
[1753885702397,0.52915,3779.7,3779.6,6.0683]
[1753885703493,3.04375,3779.7,3779.6,6.0683]
[1753885703699,4.82435,3779.7,3779.6,6.0683]
[1753885703900,2.12425,3779.7,3779.6,6.0683]
[1753885704294,4.61935,3779.7,3779.6,6.0683]
[1753885704599,4.82435,3779.7,3779.6,6.0683]
[1753885705195,4.82435,3779.7,3779.6,0.7892]
[1753885705400,1.50255147,3779.9,3778.7,6.0683]
[1753885705401,0.52928,3778.8,3778.7,6.0683]
[1753885705590,4.49138,3778.8,3778.7,6.0683]
[1753885705796,4.61948,3778.8,3778.7,6.0683]
[1753885706403,2.12438,3778.8,3778.7,6.0683]
[1753885706604,0.5707,3778.8,3778.7,6.0683]
[1753885706801,43.2951,3779.1,3778.7,6.0683]
[1753885707001,0.52921,3779.3,3779.1,0.52922]
[1753885707300,0.52925,3778.9,3778.8,21.95996]
[1753885707597,2.12435,3778.9,3778.8,24.5393]
[1753885707804,4.82445,3778.9,3778.8,24.5393]
[1753885708196,2.5146,3778.9,3778.8,24.5393]
[1753885708397,1.50255147,3779.3,3778.8,24.5393]
[1753885708398,0.52922,3779.2,3779.1,1.7634]
[1753885708704,0.52914,3779.7,3779.6,5.8676]
[1753885709104,1.10584,3779.7,3779.6,5.8676]
[1753885709407,0.5767,3779.7,3779.6,5.8676]
[1753885710001,0.52912,3779.9,3779.8,3.5457]
[1753885710202,1.10578,3780.2,3780.1,3.1822]
[1753885710395,4.66428,3780.2,3780.1,5.8676]
[1753885711006,3.9979,3780.2,3780.1,5.8676]
[1753885711301,0.52905,3780.4,3780.3,0.956]
[1753885711501,2.97555,3780.4,3780.3,5.8676]
[1753885711702,4.66425,3780.4,3780.3,5.8676]
[1753885711897,0.5767,3779.8,3779.7,2.8473]
[1753885712103,3.9979,3779.8,3779.7,5.8676]
[1753885712807,1.5401,3779.8,3779.7,5.8676]
[1753885713007,0.52907,3780.3,3780.1,6.39668]
[1753885713304,0.52907,3780.3,3779.6,1.32289]
[1753885713305,2.0423,3780.7,3780.6,0.52902]
[1753885713503,0.5767,3780.7,3780.6,6.39662]
[1753885714205,4.6642,3780.7,3780.6,5.8676]
[1753885714406,4.66423,3780.5,3780.4,2.3219]
[1753885714607,4.66423,3780.5,3780.4,5.8676]
[1753885714910,0.52906,3780.3,3779.6,3.5457]
[1753885715111,0.52906,3780.3,3779.7,22.0117]
[1753885715407,3.17995147,3780.0,3779.9,1.3659]
[1753885715608,5.63775147,3780.0,3779.9,5.8676]
[1753885715804,0.52914,3779.8,3779.6,22.0117]
[1753885716008,3.9979,3779.7,3779.6,24.3336]
[1753885716211,3.9979,3779.7,3779.6,5.8676]
[1753885716408,4.66438,3779.4,3779.3,4.4465]
[1753885716609,4.66438,3779.4,3779.3,0.8]
[1753885717009,1.50255147,3779.5,3778.9,2.1246]
[1753885717010,3.0057,3779.2,3778.9,2.1246]
[1753885717210,4.1352,3779.1,3779.0,0.8]
[1753885717511,4.1352,3779.1,3779.0,5.8676]
[1753885719411,4.1352,3779.1,3779.0,5.0073]